[Event "Titled Tuesday Blitz April 18 Early 2023"]
[White "Belov, Alexei"]
[Black "Harshavardhan G B"]
[WhiteFideId "4128206"]
[BlackFideId "25059009"]
[WhiteElo "2486"]
[BlackElo "2323"]
[Result "0-1"]
[Round "05"]
[TimeControl "180+2"]
[Date "2023.04.18"]
[WhiteClock "0:00:58"]
[BlackClock "0:01:19"]

1. e4 {[%clk 0:02:59]}  e5 {[%clk 0:02:58]} 2. Nf3 {[%clk 0:02:59]}  Nc6 {[%clk 0:02:57]} 3. Bb5 {[%clk 0:02:59]}  a6 {[%clk 0:02:56]} 4. Ba4 {[%clk 0:02:59]}  d6 {[%clk 0:02:56]} 5. c3 {[%clk 0:02:58]}  f5 {[%clk 0:02:55]} 6. exf5 {[%clk 0:02:58]}  Bxf5 {[%clk 0:02:55]} 7. O-O {[%clk 0:02:59]}  Bd3 {[%clk 0:02:54]} 8. Re1 {[%clk 0:02:59]}  Be7 {[%clk 0:02:55]} 9. Bc2 {[%clk 0:02:54]}  Bxc2 {[%clk 0:02:54]} 10. Qxc2 {[%clk 0:02:54]}  Nf6 {[%clk 0:02:54]} 11. d4 {[%clk 0:02:54]}  e4 {[%clk 0:02:55]} 12. Ng5 {[%clk 0:02:54]}  d5 {[%clk 0:02:55]} 13. f3 {[%clk 0:02:53]}  h6 {[%clk 0:02:54]} 14. Ne6 {[%clk 0:02:45]}  Qd7 {[%clk 0:02:53]} 15. Nf4 {[%clk 0:02:40]}  O-O {[%clk 0:02:53]} 16. Nd2 {[%clk 0:02:35]}  Bd6 {[%clk 0:02:43]} 17. Ng6 {[%clk 0:02:28]}  Rf7 {[%clk 0:02:38]} 18. fxe4 {[%clk 0:02:28]}  Nxe4 {[%clk 0:01:54]} 19. Nxe4 {[%clk 0:02:28]}  Re8 {[%clk 0:01:55]} 20. Bd2 {[%clk 0:02:06]}  dxe4 {[%clk 0:01:22]} 21. Rxe4 {[%clk 0:02:03]}  Rxe4 {[%clk 0:01:21]} 22. Qxe4 {[%clk 0:02:03]}  Ne7 {[%clk 0:01:22]} 23. Nxe7+ {[%clk 0:01:45]}  Rxe7 {[%clk 0:01:23]} 24. Qd5+ {[%clk 0:00:58]}  Kh7 {[%clk 0:01:21]} 25. Bf4 {[%clk 0:00:58]}  Bxf4 {[%clk 0:01:19]} 0-1


[Site "https://www.chess.com"]

[Event "Titled Tuesday Blitz April 18 Early 2023"]
[White "Jaferian, Koosha"]
[Black "Jaskolka, Tomasz"]
[WhiteFideId "12507440"]
[BlackFideId "1170791"]
[WhiteElo "2073"]
[BlackElo "2155"]
[Result "1/2-1/2"]
[Round "05"]
[TimeControl "180+2"]
[Date "2023.04.18"]
[WhiteClock "0:00:09"]
[BlackClock "0:00:15"]

1. Nf3 {[%clk 0:02:54]}  d5 {[%clk 0:02:59]} 2. b3 {[%clk 0:02:53]}  c6 {[%clk 0:02:58]} 3. Bb2 {[%clk 0:02:52]}  Nf6 {[%clk 0:02:56]} 4. g3 {[%clk 0:02:50]}  Bg4 {[%clk 0:02:54]} 5. Bg2 {[%clk 0:02:50]}  Bxf3 {[%clk 0:02:54]} 6. Bxf3 {[%clk 0:02:50]}  e6 {[%clk 0:02:53]} 7. O-O {[%clk 0:02:50]}  Nbd7 {[%clk 0:02:53]} 8. d3 {[%clk 0:02:50]}  Be7 {[%clk 0:02:53]} 9. a3 {[%clk 0:02:50]}  O-O {[%clk 0:02:42]} 10. Nd2 {[%clk 0:02:51]}  Re8 {[%clk 0:02:39]} 11. Bg2 {[%clk 0:02:48]}  a5 {[%clk 0:02:38]} 12. Ra2 {[%clk 0:02:47]}  b5 {[%clk 0:02:36]} 13. Qa1 {[%clk 0:02:46]}  Qb6 {[%clk 0:02:21]} 14. c4 {[%clk 0:02:42]}  bxc4 {[%clk 0:02:20]} 15. bxc4 {[%clk 0:02:43]}  Reb8 {[%clk 0:02:17]} 16. Rb1 {[%clk 0:02:40]}  Qa7 {[%clk 0:02:02]} 17. Bd4 {[%clk 0:02:32]}  Bc5 {[%clk 0:02:00]} 18. Bxc5 {[%clk 0:02:27]}  Nxc5 {[%clk 0:01:58]} 19. Rab2 {[%clk 0:02:28]}  Rxb2 {[%clk 0:01:56]} 20. Qxb2 {[%clk 0:02:29]}  Ncd7 {[%clk 0:01:35]} 21. Qb7 {[%clk 0:02:25]}  Qxb7 {[%clk 0:01:23]} 22. Rxb7 {[%clk 0:02:26]}  Rb8 {[%clk 0:01:22]} 23. Ra7 {[%clk 0:02:27]}  Rb2 {[%clk 0:01:19]} 24. Nf1 {[%clk 0:02:13]}  Rxe2 {[%clk 0:01:15]} 25. Ra8+ {[%clk 0:02:13]}  Nf8 {[%clk 0:01:15]} 26. Rxa5 {[%clk 0:02:14]}  g6 {[%clk 0:01:14]} 27. Ra6 {[%clk 0:02:13]}  Ra2 {[%clk 0:01:09]} 28. a4 {[%clk 0:02:06]}  N8d7 {[%clk 0:01:02]} 29. Rxc6 {[%clk 0:02:01]}  Rxa4 {[%clk 0:01:02]} 30. cxd5 {[%clk 0:02:01]}  exd5 {[%clk 0:00:40]} 31. Ne3 {[%clk 0:01:53]}  Kg7 {[%clk 0:00:36]} 32. Bxd5 {[%clk 0:01:49]}  Ne5 {[%clk 0:00:32]} 33. Rc3 {[%clk 0:01:41]}  Nxd5 {[%clk 0:00:29]} 34. Nxd5 {[%clk 0:01:41]}  Ra1+ {[%clk 0:00:25]} 35. Kg2 {[%clk 0:01:41]}  Rd1 {[%clk 0:00:26]} 36. Nf4 {[%clk 0:01:39]}  g5 {[%clk 0:00:25]} 37. Ne2 {[%clk 0:01:20]}  Nxd3 {[%clk 0:00:22]} 38. Kf3 {[%clk 0:00:48]}  f5 {[%clk 0:00:15]} 39. Rc7+ {[%clk 0:00:45]}  Kg6 {[%clk 0:00:14]} 40. Nc3 {[%clk 0:00:38]}  Rc1 {[%clk 0:00:09]} 41. h3 {[%clk 0:00:32]}  h5 {[%clk 0:00:09]} 42. Ke2 {[%clk 0:00:24]}  Ne5 {[%clk 0:00:07]} 43. Kd2 {[%clk 0:00:25]}  Rf1 {[%clk 0:00:07]} 44. Ke2 {[%clk 0:00:24]}  Rc1 {[%clk 0:00:07]} 45. f4 {[%clk 0:00:19]}  gxf4 {[%clk 0:00:05]} 46. gxf4 {[%clk 0:00:20]}  Nf7 {[%clk 0:00:05]} 47. Nd5 {[%clk 0:00:16]}  Rh1 {[%clk 0:00:02]} 48. Rc6+ {[%clk 0:00:15]}  Kg7 {[%clk 0:00:03]} 49. Ne7 {[%clk 0:00:14]}  Rxh3 {[%clk 0:00:02]} 50. Nxf5+ {[%clk 0:00:15]}  Kg8 {[%clk 0:00:03]} 51. Rg6+ {[%clk 0:00:12]}  Kf8 {[%clk 0:00:03]} 52. Ra6 {[%clk 0:00:13]}  Ke8 {[%clk 0:00:03]} 53. Ra8+ {[%clk 0:00:12]}  Kd7 {[%clk 0:00:03]} 54. Ra7+ {[%clk 0:00:13]}  Ke6 {[%clk 0:00:04]} 55. Nd4+ {[%clk 0:00:13]}  Kf6 {[%clk 0:00:05]} 56. Nf3 {[%clk 0:00:12]}  Rg3 {[%clk 0:00:05]} 57. Kf2 {[%clk 0:00:12]}  Rg4 {[%clk 0:00:05]} 58. Ke3 {[%clk 0:00:07]}  Nd6 {[%clk 0:00:05]} 59. Ra6 {[%clk 0:00:07]}  Ke7 {[%clk 0:00:06]} 60. Ra7+ {[%clk 0:00:07]}  Ke6 {[%clk 0:00:05]} 61. Nd4+ {[%clk 0:00:07]}  Kd5 {[%clk 0:00:06]} 62. Nf3 {[%clk 0:00:07]}  Nc4+ {[%clk 0:00:06]} 63. Kf2 {[%clk 0:00:06]}  Rxf4 {[%clk 0:00:07]} 64. Kg3 {[%clk 0:00:07]}  Rg4+ {[%clk 0:00:07]} 65. Kf2 {[%clk 0:00:06]}  Nd6 {[%clk 0:00:07]} 66. Rh7 {[%clk 0:00:07]}  Ne4+ {[%clk 0:00:07]} 67. Ke3 {[%clk 0:00:07]}  Nf6 {[%clk 0:00:07]} 68. Rh8 {[%clk 0:00:07]}  Ke6 {[%clk 0:00:08]} 69. Ra8 {[%clk 0:00:06]}  Kf5 {[%clk 0:00:08]} 70. Ra5+ {[%clk 0:00:06]}  Kg6 {[%clk 0:00:09]} 71. Ne5+ {[%clk 0:00:07]}  Kf5 {[%clk 0:00:08]} 72. Nxg4+ {[%clk 0:00:06]}  Kxg4 {[%clk 0:00:09]} 73. Kf2 {[%clk 0:00:06]}  h4 {[%clk 0:00:09]} 74. Ra4+ {[%clk 0:00:06]}  Kg5 {[%clk 0:00:09]} 75. Kg2 {[%clk 0:00:06]}  Ng4 {[%clk 0:00:09]} 76. Kh3 {[%clk 0:00:07]}  Nf2+ {[%clk 0:00:10]} 77. Kg2 {[%clk 0:00:07]}  Ng4 {[%clk 0:00:11]} 78. Ra5+ {[%clk 0:00:06]}  Kf4 {[%clk 0:00:11]} 79. Ra8 {[%clk 0:00:07]}  Nf6 {[%clk 0:00:11]} 80. Kh3 {[%clk 0:00:07]}  Kg5 {[%clk 0:00:12]} 81. Ra5+ {[%clk 0:00:07]}  Kf4 {[%clk 0:00:11]} 82. Kxh4 {[%clk 0:00:07]}  Ne4 {[%clk 0:00:12]} 83. Ra4 {[%clk 0:00:07]}  Kf5 {[%clk 0:00:12]} 84. Kh3 {[%clk 0:00:07]}  Kf4 {[%clk 0:00:12]} 85. Kg2 {[%clk 0:00:07]}  Ke3 {[%clk 0:00:13]} 86. Ra3+ {[%clk 0:00:07]}  Kf4 {[%clk 0:00:13]} 87. Rf3+ {[%clk 0:00:06]}  Kg4 {[%clk 0:00:14]} 88. Rb3 {[%clk 0:00:06]}  Kf4 {[%clk 0:00:14]} 89. Rb4 {[%clk 0:00:06]}  Ke3 {[%clk 0:00:14]} 90. Kf1 {[%clk 0:00:07]}  Kf3 {[%clk 0:00:15]} 91. Ke1 {[%clk 0:00:07]}  Ke3 {[%clk 0:00:15]} 92. Rb3+ {[%clk 0:00:08]}  Kd4 {[%clk 0:00:15]} 93. Ke2 {[%clk 0:00:08]}  Nc3+ {[%clk 0:00:16]} 94. Kd2 {[%clk 0:00:08]}  Ne4+ {[%clk 0:00:16]} 95. Kc2 {[%clk 0:00:09]}  Kc4 {[%clk 0:00:17]} 96. Rh3 {[%clk 0:00:09]}  Kd4 {[%clk 0:00:16]} 97. Rd3+ {[%clk 0:00:08]}  Kc4 {[%clk 0:00:17]} 98. Re3 {[%clk 0:00:09]}  Kd4 {[%clk 0:00:17]} 99. Rd3+ {[%clk 0:00:09]}  Kc4 {[%clk 0:00:18]} 100. Rd1 {[%clk 0:00:10]}  Nc3 {[%clk 0:00:15]} 101. Rd8 {[%clk 0:00:10]}  Ne4 {[%clk 0:00:15]} 102. Rd7 {[%clk 0:00:10]}  Nc5 {[%clk 0:00:15]} 103. Rc7 {[%clk 0:00:10]}  Kd4 {[%clk 0:00:15]} 104. Rc8 {[%clk 0:00:09]}  Kc4 {[%clk 0:00:15]} 105. Kd2 {[%clk 0:00:10]}  Kd4 {[%clk 0:00:16]} 106. Rd8+ {[%clk 0:00:11]}  Kc4 {[%clk 0:00:16]} 107. Ke3 {[%clk 0:00:11]}  Kc3 {[%clk 0:00:15]} 108. Rc8 {[%clk 0:00:11]}  Kc4 {[%clk 0:00:16]} 109. Rc7 {[%clk 0:00:10]}  Kd5 {[%clk 0:00:15]} 110. Rh7 {[%clk 0:00:10]}  Kc4 {[%clk 0:00:16]} 111. Rh5 {[%clk 0:00:10]}  Nb3 {[%clk 0:00:15]} 112. Rh4+ {[%clk 0:00:07]}  Kc3 {[%clk 0:00:15]} 113. Rh8 {[%clk 0:00:07]}  Kc4 {[%clk 0:00:15]} 114. Rc8+ {[%clk 0:00:08]}  Nc5 {[%clk 0:00:15]} 115. Rc7 {[%clk 0:00:08]}  Kd5 {[%clk 0:00:16]} 116. Rg7 {[%clk 0:00:08]}  Kc4 {[%clk 0:00:16]} 117. Rg5 {[%clk 0:00:07]}  Nb3 {[%clk 0:00:16]} 118. Ke4 {[%clk 0:00:05]}  Nc5+ {[%clk 0:00:16]} 119. Ke5 {[%clk 0:00:06]}  Nd3+ {[%clk 0:00:16]} 120. Kd6 {[%clk 0:00:06]}  Kd4 {[%clk 0:00:16]} 121. Rg4+ {[%clk 0:00:06]}  Ke3 {[%clk 0:00:17]} 122. Kd5 {[%clk 0:00:06]}  Nf4+ {[%clk 0:00:17]} 123. Ke5 {[%clk 0:00:07]}  Nd3+ {[%clk 0:00:18]} 124. Kf5 {[%clk 0:00:08]}  Kf3 {[%clk 0:00:18]} 125. Ra4 {[%clk 0:00:08]}  Ke3 {[%clk 0:00:19]} 126. Ra3 {[%clk 0:00:08]}  Kd2 {[%clk 0:00:18]} 127. Ke4 {[%clk 0:00:08]}  Nf2+ {[%clk 0:00:14]} 128. Kd4 {[%clk 0:00:08]}  Ke2 {[%clk 0:00:14]} 129. Re3+ {[%clk 0:00:08]}  Kd2 {[%clk 0:00:14]} 130. Rf3 {[%clk 0:00:08]}  Ke2 {[%clk 0:00:15]} 131. Re3+ {[%clk 0:00:08]}  Kd2 {[%clk 0:00:15]} 132. Re8 {[%clk 0:00:09]} 1/2-1/2


[Site "https://www.chess.com"]

[Event "Titled Tuesday Blitz April 18 Early 2023"]
[White "Toncheva, Nadya"]
[Black "Bilych, Olexiy"]
[WhiteFideId "2924056"]
[BlackFideId "14156504"]
[WhiteElo "2101"]
[BlackElo "2320"]
[Result "0-1"]
[Round "05"]
[TimeControl "180+2"]
[Date "2023.04.18"]
[WhiteClock "0:00:31"]
[BlackClock "0:00:50"]

1. e4 {[%clk 0:03:00]}  c5 {[%clk 0:03:00]} 2. c3 {[%clk 0:02:58]}  d5 {[%clk 0:02:59]} 3. exd5 {[%clk 0:02:57]}  Nf6 {[%clk 0:02:59]} 4. Nf3 {[%clk 0:02:58]}  Nxd5 {[%clk 0:02:58]} 5. d4 {[%clk 0:02:53]}  cxd4 {[%clk 0:02:58]} 6. Nxd4 {[%clk 0:02:50]}  a6 {[%clk 0:01:48]} 7. Be2 {[%clk 0:02:49]}  e5 {[%clk 0:01:48]} 8. Nb3 {[%clk 0:02:45]}  Nc6 {[%clk 0:01:48]} 9. O-O {[%clk 0:02:44]}  Be7 {[%clk 0:01:48]} 10. Bf3 {[%clk 0:02:42]}  Be6 {[%clk 0:01:48]} 11. N1d2 {[%clk 0:02:17]}  O-O {[%clk 0:01:40]} 12. Ne4 {[%clk 0:01:57]}  b6 {[%clk 0:01:40]} 13. Qe2 {[%clk 0:01:45]}  f5 {[%clk 0:01:35]} 14. Ng3 {[%clk 0:01:27]}  e4 {[%clk 0:01:35]} 15. Qe1 {[%clk 0:01:21]}  Qd7 {[%clk 0:01:26]} 16. Bd1 {[%clk 0:01:18]}  a5 {[%clk 0:01:18]} 17. f3 {[%clk 0:01:16]}  a4 {[%clk 0:01:18]} 18. fxe4 {[%clk 0:01:13]}  axb3 {[%clk 0:00:59]} 19. exd5 {[%clk 0:01:12]}  Bxd5 {[%clk 0:00:59]} 20. a3 {[%clk 0:00:53]}  Bc5+ {[%clk 0:00:59]} 21. Kh1 {[%clk 0:00:51]}  Rae8 {[%clk 0:00:53]} 22. Be2 {[%clk 0:00:40]}  Ne5 {[%clk 0:00:53]} 23. Qd1 {[%clk 0:00:38]}  Qc6 {[%clk 0:00:50]} 24. Bf3 {[%clk 0:00:31]}  Nxf3 {[%clk 0:00:50]} 25. gxf3 {[%clk 0:00:31]}  Re1 {[%clk 0:00:50]} 0-1


[Site "https://www.chess.com"]

[Event "Titled Tuesday Blitz April 18 Early 2023"]
[White "Chernov, Mikhail"]
[Black "Ravi, Teja S."]
[WhiteFideId "24143170"]
[BlackFideId "5017220"]
[WhiteElo "2113"]
[BlackElo "2433"]
[Result "0-1"]
[Round "05"]
[TimeControl "180+2"]
[Date "2023.04.18"]
[WhiteClock "0:00:31"]
[BlackClock "0:01:31"]

1. d4 {[%clk 0:02:56]}  d5 {[%clk 0:03:00]} 2. Nc3 {[%clk 0:02:56]}  Nf6 {[%clk 0:02:58]} 3. Bf4 {[%clk 0:02:56]}  c5 {[%clk 0:02:56]} 4. e3 {[%clk 0:02:56]}  a6 {[%clk 0:02:56]} 5. dxc5 {[%clk 0:02:45]}  e6 {[%clk 0:02:54]} 6. Nf3 {[%clk 0:02:23]}  Bxc5 {[%clk 0:02:54]} 7. Be2 {[%clk 0:02:18]}  Nc6 {[%clk 0:02:53]} 8. O-O {[%clk 0:02:17]}  O-O {[%clk 0:02:53]} 9. Bg5 {[%clk 0:02:16]}  b5 {[%clk 0:02:50]} 10. e4 {[%clk 0:02:13]}  d4 {[%clk 0:02:47]} 11. e5 {[%clk 0:02:02]}  dxc3 {[%clk 0:02:02]} 12. exf6 {[%clk 0:02:01]}  Qxd1 {[%clk 0:01:58]} 13. Raxd1 {[%clk 0:02:02]}  cxb2 {[%clk 0:01:58]} 14. Rb1 {[%clk 0:01:49]}  Ba3 {[%clk 0:01:54]} 15. Rfd1 {[%clk 0:01:38]}  e5 {[%clk 0:01:51]} 16. Rd3 {[%clk 0:01:34]}  b4 {[%clk 0:01:50]} 17. Rd6 {[%clk 0:01:30]}  Nd4 {[%clk 0:01:36]} 18. Nxd4 {[%clk 0:01:15]}  exd4 {[%clk 0:01:37]} 19. Rxd4 {[%clk 0:01:16]}  Be6 {[%clk 0:01:35]} 20. Bc4 {[%clk 0:01:12]}  Bxc4 {[%clk 0:01:35]} 21. Rxc4 {[%clk 0:01:13]}  Rac8 {[%clk 0:01:34]} 22. Rxc8 {[%clk 0:00:35]}  Rxc8 {[%clk 0:01:35]} 23. Rd1 {[%clk 0:00:35]}  h6 {[%clk 0:01:32]} 24. Be3 {[%clk 0:00:31]}  Rxc2 {[%clk 0:01:31]} 0-1


[Site "https://www.chess.com"]

[Event "Titled Tuesday Blitz April 18 Early 2023"]
[White "Brunner, Nicolas"]
[Black "Rom, Jasper"]
[WhiteFideId "620246"]
[BlackFideId "2023733"]
[WhiteElo "2327"]
[BlackElo "2233"]
[Result "1-0"]
[Round "05"]
[TimeControl "180+2"]
[Date "2023.04.18"]
[WhiteClock "0:00:11"]
[BlackClock "0:00:01"]

1. Nf3 {[%clk 0:03:00]}  d5 {[%clk 0:02:53]} 2. g3 {[%clk 0:03:01]}  e6 {[%clk 0:02:52]} 3. Bg2 {[%clk 0:03:01]}  Nf6 {[%clk 0:02:52]} 4. O-O {[%clk 0:03:02]}  Be7 {[%clk 0:02:51]} 5. c4 {[%clk 0:03:02]}  O-O {[%clk 0:02:51]} 6. d4 {[%clk 0:03:01]}  dxc4 {[%clk 0:02:51]} 7. Qa4 {[%clk 0:03:01]}  a6 {[%clk 0:02:48]} 8. Qxc4 {[%clk 0:03:01]}  b5 {[%clk 0:02:49]} 9. Qc2 {[%clk 0:03:02]}  Bb7 {[%clk 0:02:49]} 10. Bg5 {[%clk 0:03:02]}  Be4 {[%clk 0:02:42]} 11. Qc1 {[%clk 0:03:00]}  Nbd7 {[%clk 0:02:37]} 12. Nbd2 {[%clk 0:03:00]}  Bd5 {[%clk 0:02:35]} 13. Nb3 {[%clk 0:02:57]}  Rc8 {[%clk 0:02:29]} 14. Nc5 {[%clk 0:02:54]}  Nxc5 {[%clk 0:02:18]} 15. dxc5 {[%clk 0:02:54]}  c6 {[%clk 0:02:18]} 16. b4 {[%clk 0:02:54]}  a5 {[%clk 0:02:17]} 17. a3 {[%clk 0:02:53]}  Ra8 {[%clk 0:02:17]} 18. Rd1 {[%clk 0:02:52]}  Qc7 {[%clk 0:02:16]} 19. Qb2 {[%clk 0:02:51]}  Rfd8 {[%clk 0:02:12]} 20. Bf4 {[%clk 0:02:40]}  Qb7 {[%clk 0:02:11]} 21. Be5 {[%clk 0:02:40]}  Ra7 {[%clk 0:02:10]} 22. Bh3 {[%clk 0:02:07]}  Rda8 {[%clk 0:02:08]} 23. Nd2 {[%clk 0:02:05]}  axb4 {[%clk 0:02:03]} 24. axb4 {[%clk 0:02:05]}  Ra2 {[%clk 0:02:04]} 25. Qd4 {[%clk 0:01:55]}  Ne8 {[%clk 0:00:37]} 26. e4 {[%clk 0:01:47]}  f6 {[%clk 0:00:37]} 27. exd5 {[%clk 0:01:45]}  fxe5 {[%clk 0:00:37]} 28. Bxe6+ {[%clk 0:01:45]}  Kh8 {[%clk 0:00:35]} 29. Qd3 {[%clk 0:01:07]}  Rxa1 {[%clk 0:00:32]} 30. Rxa1 {[%clk 0:01:01]}  Rxa1+ {[%clk 0:00:32]} 31. Kg2 {[%clk 0:01:02]}  cxd5 {[%clk 0:00:24]} 32. Bxd5 {[%clk 0:01:02]}  Qc7 {[%clk 0:00:24]} 33. Qxb5 {[%clk 0:01:00]}  Nf6 {[%clk 0:00:24]} 34. Bc6 {[%clk 0:00:46]}  Ra2 {[%clk 0:00:22]} 35. Nc4 {[%clk 0:00:21]}  h6 {[%clk 0:00:22]} 36. h3 {[%clk 0:00:21]}  e4 {[%clk 0:00:22]} 37. Ne3 {[%clk 0:00:19]}  Qd8 {[%clk 0:00:16]} 38. Qb7 {[%clk 0:00:15]}  Bf8 {[%clk 0:00:15]} 39. Qf7 {[%clk 0:00:12]}  Qe7 {[%clk 0:00:13]} 40. Qxa2 {[%clk 0:00:12]}  Qe5 {[%clk 0:00:07]} 41. Qc4 {[%clk 0:00:11]}  Kh7 {[%clk 0:00:01]} 42. Ba4 {[%clk 0:00:11]}  Be7 {[%clk 0:00:01]} 43. Bb3 {[%clk 0:00:11]} 1-0


[Site "https://www.chess.com"]

[Event "Titled Tuesday Blitz April 18 Early 2023"]
[White "Kovalevsky, Stanislav"]
[Black "Perez Gormaz, Matias"]
[WhiteFideId "13508598"]
[BlackFideId "3406342"]
[WhiteElo "2174"]
[BlackElo "2362"]
[Result "0-1"]
[Round "05"]
[TimeControl "180+2"]
[Date "2023.04.18"]
[WhiteClock "0:00:17"]
[BlackClock "0:00:24"]

1. c4 {[%clk 0:03:00]}  Nf6 {[%clk 0:02:57]} 2. Nc3 {[%clk 0:03:01]}  e5 {[%clk 0:02:56]} 3. g3 {[%clk 0:03:01]}  Bb4 {[%clk 0:02:55]} 4. Bg2 {[%clk 0:03:01]}  O-O {[%clk 0:02:55]} 5. e4 {[%clk 0:03:00]}  d6 {[%clk 0:02:52]} 6. Nge2 {[%clk 0:02:39]}  Nc6 {[%clk 0:02:52]} 7. O-O {[%clk 0:02:38]}  Bc5 {[%clk 0:02:52]} 8. h3 {[%clk 0:02:38]}  a6 {[%clk 0:02:51]} 9. d3 {[%clk 0:02:38]}  Rb8 {[%clk 0:02:50]} 10. a4 {[%clk 0:02:33]}  Nd7 {[%clk 0:02:15]} 11. Kh2 {[%clk 0:02:25]}  f5 {[%clk 0:02:15]} 12. exf5 {[%clk 0:02:15]}  Rxf5 {[%clk 0:02:15]} 13. Ne4 {[%clk 0:02:07]}  Rf8 {[%clk 0:02:09]} 14. Nxc5 {[%clk 0:02:03]}  Nxc5 {[%clk 0:02:10]} 15. d4 {[%clk 0:02:03]}  exd4 {[%clk 0:02:08]} 16. Nxd4 {[%clk 0:02:04]}  Nxd4 {[%clk 0:02:09]} 17. Qxd4 {[%clk 0:02:04]}  Nb3 {[%clk 0:01:48]} 18. Qd5+ {[%clk 0:02:03]}  Kh8 {[%clk 0:01:48]} 19. Rb1 {[%clk 0:01:57]}  Bf5 {[%clk 0:01:46]} 20. Bf4 {[%clk 0:01:45]}  Bxb1 {[%clk 0:01:42]} 21. Rxb1 {[%clk 0:01:46]}  Qe7 {[%clk 0:01:35]} 22. Qd3 {[%clk 0:01:33]}  Nc5 {[%clk 0:01:34]} 23. Qc2 {[%clk 0:01:33]}  a5 {[%clk 0:01:32]} 24. Qc3 {[%clk 0:01:15]}  b6 {[%clk 0:01:30]} 25. Re1 {[%clk 0:01:14]}  Qf6 {[%clk 0:01:26]} 26. Qe3 {[%clk 0:01:10]}  Qxb2 {[%clk 0:01:14]} 27. Qe7 {[%clk 0:01:08]}  Nd3 {[%clk 0:01:02]} 28. Re2 {[%clk 0:01:04]}  Qf6 {[%clk 0:00:59]} 29. Bg5 {[%clk 0:00:50]}  Qxe7 {[%clk 0:00:57]} 30. Rxe7 {[%clk 0:00:51]}  Rxf2 {[%clk 0:00:52]} 31. g4 {[%clk 0:00:51]}  h6 {[%clk 0:00:46]} 32. Be3 {[%clk 0:00:46]}  Re2 {[%clk 0:00:45]} 33. Kg3 {[%clk 0:00:39]}  Ne1 {[%clk 0:00:35]} 34. Bf1 {[%clk 0:00:35]}  Rxe3+ {[%clk 0:00:29]} 35. Rxe3 {[%clk 0:00:35]}  Nc2 {[%clk 0:00:30]} 36. Re7 {[%clk 0:00:33]}  Rc8 {[%clk 0:00:29]} 37. Bd3 {[%clk 0:00:32]}  Nd4 {[%clk 0:00:23]} 38. h4 {[%clk 0:00:25]}  Nc6 {[%clk 0:00:18]} 39. Re6 {[%clk 0:00:17]}  Ne5 {[%clk 0:00:18]} 40. Bf5 {[%clk 0:00:16]}  Rf8 {[%clk 0:00:16]} 41. Re7 {[%clk 0:00:15]}  g6 {[%clk 0:00:16]} 42. Be4 {[%clk 0:00:14]}  Rf7 {[%clk 0:00:15]} 43. Rxf7 {[%clk 0:00:13]}  Nxf7 {[%clk 0:00:15]} 44. Bxg6 {[%clk 0:00:13]}  Ne5 {[%clk 0:00:16]} 45. Be4 {[%clk 0:00:11]}  Nxc4 {[%clk 0:00:15]} 46. Kf4 {[%clk 0:00:12]}  Kg7 {[%clk 0:00:16]} 47. Kf5 {[%clk 0:00:10]}  c6 {[%clk 0:00:11]} 48. Ke6 {[%clk 0:00:10]}  d5 {[%clk 0:00:11]} 49. Bd3 {[%clk 0:00:08]}  Nb2 {[%clk 0:00:10]} 50. Bc2 {[%clk 0:00:08]}  d4 {[%clk 0:00:11]} 51. Kd6 {[%clk 0:00:07]}  d3 {[%clk 0:00:10]} 52. Bxd3 {[%clk 0:00:07]}  Nxd3 {[%clk 0:00:11]} 53. Kxc6 {[%clk 0:00:08]}  Nb2 {[%clk 0:00:11]} 54. Kxb6 {[%clk 0:00:08]}  Nxa4+ {[%clk 0:00:11]} 55. Kxa5 {[%clk 0:00:08]}  Nc3 {[%clk 0:00:12]} 56. Kb4 {[%clk 0:00:08]}  Ne4 {[%clk 0:00:12]} 57. Kc4 {[%clk 0:00:08]}  Nf2 {[%clk 0:00:11]} 58. g5 {[%clk 0:00:08]}  h5 {[%clk 0:00:12]} 59. Kd5 {[%clk 0:00:08]}  Kg6 {[%clk 0:00:11]} 60. Ke5 {[%clk 0:00:08]}  Nh1 {[%clk 0:00:10]} 61. Kf4 {[%clk 0:00:07]}  Nf2 {[%clk 0:00:11]} 62. Kg3 {[%clk 0:00:07]}  Ng4 {[%clk 0:00:11]} 63. Kf4 {[%clk 0:00:08]}  Nf2 {[%clk 0:00:11]} 64. Kg3 {[%clk 0:00:08]}  Nd3 {[%clk 0:00:12]} 65. Kf3 {[%clk 0:00:07]}  Nc5 {[%clk 0:00:12]} 66. Kf4 {[%clk 0:00:08]}  Nb7 {[%clk 0:00:13]} 67. Ke5 {[%clk 0:00:08]}  Nc5 {[%clk 0:00:13]} 68. Kf4 {[%clk 0:00:08]}  Nb7 {[%clk 0:00:12]} 69. Ke5 {[%clk 0:00:08]}  Nd8 {[%clk 0:00:13]} 70. Kd6 {[%clk 0:00:06]}  Nf7+ {[%clk 0:00:13]} 71. Ke6 {[%clk 0:00:06]}  Nd8+ {[%clk 0:00:12]} 72. Ke5 {[%clk 0:00:06]}  Nb7 {[%clk 0:00:12]} 73. Kf4 {[%clk 0:00:06]}  Nd6 {[%clk 0:00:12]} 74. Ke5 {[%clk 0:00:05]}  Nf5 {[%clk 0:00:13]} 75. Kf4 {[%clk 0:00:06]}  Nxh4 {[%clk 0:00:13]} 76. Kg3 {[%clk 0:00:06]}  Nf5+ {[%clk 0:00:13]} 77. Kh3 {[%clk 0:00:07]}  Ng7 {[%clk 0:00:14]} 78. Kh4 {[%clk 0:00:07]}  Ne6 {[%clk 0:00:15]} 79. Kg3 {[%clk 0:00:08]}  Nxg5 {[%clk 0:00:16]} 80. Kh2 {[%clk 0:00:08]}  Nh7 {[%clk 0:00:16]} 81. Kg3 {[%clk 0:00:09]}  Kg5 {[%clk 0:00:17]} 82. Kh3 {[%clk 0:00:10]}  Nf6 {[%clk 0:00:18]} 83. Kg3 {[%clk 0:00:11]}  h4+ {[%clk 0:00:19]} 84. Kh3 {[%clk 0:00:12]}  Ng4 {[%clk 0:00:19]} 85. Kg2 {[%clk 0:00:12]}  Nh6 {[%clk 0:00:19]} 86. Kh3 {[%clk 0:00:13]}  Kh5 {[%clk 0:00:20]} 87. Kg2 {[%clk 0:00:14]}  Kg4 {[%clk 0:00:21]} 88. Kh2 {[%clk 0:00:15]}  h3 {[%clk 0:00:21]} 89. Kh1 {[%clk 0:00:15]}  Kh4 {[%clk 0:00:22]} 90. Kg1 {[%clk 0:00:15]}  Ng4 {[%clk 0:00:23]} 91. Kh1 {[%clk 0:00:16]}  Kg3 {[%clk 0:00:23]} 92. Kg1 {[%clk 0:00:17]}  h2+ {[%clk 0:00:24]} 93. Kh1 {[%clk 0:00:17]}  Nf2# {[%clk 0:00:24]} 0-1


[Site "https://www.chess.com"]